bitfinex/quotes_ETHUSD_20220202
["timestamp","ask_amount","ask_price","bid_price","bid_amount"]
[1643827603810,1.57635487,2690.0,2689.7,1.88015321]
[1643827604054,1.57635487,2689.9,2689.7,1.88015321]
[1643827604261,1.57635487,2689.8,2689.7,0.95059321]
[1643827604454,0.70910666,2690.1,2689.7,0.95059321]
[1643827604858,0.89480666,2690.1,2689.6,0.9295964]
[1643827605055,1.57635487,2690.0,2689.6,0.9295964]
[1643827605455,1.57635487,2689.9,2689.6,0.9295964]
[1643827605756,1.57635487,2689.8,2689.6,1.8591864]
[1643827605958,0.70910666,2690.1,2689.7,0.74465707]
[1643827606157,2.28545215,2690.1,2689.7,0.74465707]
[1643827606456,2.28050637,2690.1,2689.7,0.74465707]
[1643827606656,2.28545195,2690.1,2689.7,0.74465707]
[1643827606855,2.28545195,2690.1,2689.6,1.8591864]
[1643827607057,2.28545195,2690.1,2689.4,3.903939]
[1643827607257,1.57634549,2690.0,2689.4,4.647869]
[1643827607455,1.57634549,2689.9,2689.4,4.647869]
[1643827607709,1.57634549,2689.9,2689.5,0.92962]
[1643827607906,1.52634549,2689.8,2689.6,0.82751929]
[1643827608104,0.70967737,2690.1,2689.6,0.82751929]
[1643827608704,0.70967737,2690.1,2689.6,1.75710929]
[1643827608904,0.00551649,2690.1,2689.6,1.75710929]
[1643827609103,0.89537748,2690.1,2689.6,1.75710929]
[1643827609302,0.70967748,2690.1,2689.6,1.75710929]
[1643827609504,0.0055166,2690.1,2689.6,1.75710929]
[1643827610103,0.0055166,2690.1,2689.6,3.61625429]
[1643827611109,0.0055166,2690.1,2689.6,2.68666929]
[1643827611571,0.00478472,2690.1,2689.6,2.68666929]
[1643827613368,0.00478472,2690.1,2689.7,0.92956]
[1643827613567,0.7089456,2690.1,2689.7,0.92956]
[1643827614467,0.7089456,2690.1,2689.6,1.75707929]
[1643827614669,0.7089456,2690.1,2689.5,0.1857]
[1643827614670,0.70416088,2690.0,2689.5,0.1857]
[1643827614870,0.70416088,2689.8,2689.3,1.3344]
[1643827615069,0.70416088,2689.8,2689.3,1.1487]
[1643827616222,0.70416088,2689.8,2689.4,0.79684488]
[1643827617327,0.70416088,2689.8,2689.2,0.19071788]
[1643827617522,0.70416088,2689.8,2689.2,0.00501793]
[1643827618523,0.70416088,2689.8,2689.2,0.16972559]
[1643827618724,0.70416088,2689.8,2689.2,0.16946259]
[1643827618958,0.70416088,2689.8,2689.3,0.72370761]
[1643827619163,0.70416088,2689.8,2689.2,1.86416493]
[1643827619360,0.70416088,2689.8,2689.2,0.00475493]
[1643827619762,0.70416088,2689.7,2689.2,0.00475493]
[1643827619960,0.70416088,2689.7,2689.2,0.00473142]
[1643827620260,0.70416088,2689.8,2689.2,0.00473142]
[1643827621059,0.70416088,2689.8,2689.3,0.90005727]
[1643827622162,0.70416088,2689.9,2689.3,0.90005727]
[1643827623109,0.70416088,2689.7,2689.2,0.00499106]
[1643827623510,0.70416088,2689.7,2689.2,0.00501895]
[1643827624709,0.70416088,2689.7,2689.2,0.89335647]
[1643827625912,0.19941628,2689.7,2689.2,0.89320898]
[1643827626560,0.18630546,2689.8,2689.2,0.89320898]
[1643827627160,0.18630546,2689.8,2689.2,0.89346684]
[1643827627560,1.18630546,2689.8,2689.2,0.89346684]
[1643827627762,1.18630546,2689.8,2688.6,0.27661067]
[1643827627763,1.0,2689.3,2689.0,0.1859]
[1643827627962,1.1856,2689.3,2689.0,0.1859]
[1643827628162,1.1856,2689.3,2688.7,0.00197844]
[1643827628163,1.1856,2689.1,2688.7,0.00197844]
[1643827628362,1.57688496,2689.0,2688.7,0.00197844]
[1643827628562,3.9356,2688.8,2688.7,0.00197844]
[1643827628761,7.17002127,2688.8,2688.1,0.77165139]
[1643827628961,2.58173998,2688.7,2688.0,0.1859]
[1643827629163,2.58173998,2688.7,2687.9,0.1859]
[1643827629164,1.0,2688.4,2687.9,0.1859]
[1643827629363,1.76288496,2688.3,2687.6,7.4]
[1643827629571,1.57688496,2688.2,2687.6,7.4]
[1643827629965,1.76248496,2688.2,2687.6,7.4]
[1643827630211,0.1856,2688.2,2687.6,7.4]
[1643827630413,0.14692299,2687.9,2687.6,7.4]
[1643827630612,0.14692299,2687.9,2687.8,0.00499223]
[1643827631216,1.33252299,2687.9,2687.8,0.00499223]
[1643827631417,3.74698252,2687.9,2687.8,0.00499223]
[1643827631616,3.74698252,2687.9,2687.0,0.186]
[1643827631617,0.81873253,2687.5,2687.0,0.186]
[1643827631821,0.1928577,2687.8,2687.0,0.186]
[1643827632015,0.7298577,2687.8,2687.0,0.186]
[1643827632415,1.7298577,2687.8,2687.0,0.186]
[1643827632815,0.79753473,2687.5,2687.0,0.186]
[1643827633015,0.7298577,2687.8,2687.0,0.186]
[1643827633218,0.9158577,2687.8,2687.3,0.0024865]
[1643827633421,0.1932577,2687.8,2687.3,0.0024865]
[1643827633617,0.186,2687.9,2687.3,0.0024865]
[1643827634057,1.5775466,2687.8,2687.3,0.0024865]
[1643827634258,0.86303587,2687.9,2687.4,0.00561154]
[1643827634658,1.03555342,2687.9,2687.4,0.00561154]
[1643827634863,1.57756841,2687.8,2687.4,0.00561154]
[1643827635261,1.57756841,2687.8,2687.0,1.186]
[1643827635562,1.03555342,2687.9,2687.5,0.0053183]
[1643827636161,0.1856,2687.8,2687.5,0.0053183]
[1643827636363,1.03555342,2687.9,2687.0,0.186]
[1643827636765,1.03555342,2687.9,2687.6,0.00531825]
[1643827637064,0.46239994,2688.0,2687.6,0.00531825]
[1643827637265,0.186,2688.2,2687.6,0.00531825]
[1643827637467,1.1703,2688.3,2687.6,0.00531825]
[1643827637714,0.186,2688.6,2687.6,0.00531825]
[1643827637910,1.57727057,2688.5,2688.1,0.84899627]
[1643827638113,0.186,2688.6,2687.7,0.19114267]
[1643827638312,0.1856,2688.9,2687.7,0.93525267]
[1643827638313,0.186,2688.7,2687.7,0.93525267]
[1643827638513,2.2392,2689.1,2687.8,1.11598]
[1643827638514,0.1859,2688.8,2687.8,1.11598]
[1643827638712,1.2392,2689.1,2687.8,1.11598]
[1643827638713,0.1859,2689.0,2687.9,2.39682894]
[1643827639011,0.1859,2689.0,2688.0,0.1859]
[1643827639312,1.5770387,2688.9,2688.4,0.70601911]
[1643827639513,0.1859,2689.0,2688.4,0.70601911]
[1643827639710,1.57702809,2688.9,2688.2,0.1859]
[1643827639912,0.1859,2689.3,2688.2,0.1859]
[1643827640114,1.57705113,2689.2,2688.2,0.1859]
[1643827640310,0.1859,2689.1,2688.6,0.00497223]
[1643827640512,1.77783358,2689.0,2688.6,0.00497223]
[1643827640709,0.20078245,2689.0,2688.6,0.00497223]
[1643827641464,0.1856,2689.4,2688.7,0.00497406]
[1643827641465,0.1859,2689.1,2688.7,0.00497406]
[1643827641662,1.00497205,2689.8,2688.7,0.00497406]
[1643827641663,1.57698467,2689.0,2688.7,0.00497406]
[1643827641861,0.1859,2689.6,2688.7,0.00497406]
[1643827642062,1.57682948,2689.5,2688.7,0.00497406]
[1643827642261,0.14360093,2689.2,2688.7,0.00497406]
[1643827642461,1.57682948,2689.1,2688.2,1.1859]
[1643827642665,1.76272948,2689.1,2688.2,0.1859]
[1643827642860,0.1859,2689.1,2689.0,0.00497376]
[1643827643061,1.76285951,2689.1,2689.0,0.00497376]
[1643827644067,1.76285951,2689.1,2688.9,0.00498513]
[1643827644260,0.1859,2689.1,2688.9,0.00498513]
[1643827644461,0.1859,2689.6,2688.9,0.00498513]
[1643827644661,1.57673679,2689.5,2688.9,0.00498513]
[1643827645341,0.55769442,2689.8,2689.3,0.72601876]
[1643827645342,0.19668205,2689.7,2689.3,0.72601876]
[1643827645529,0.19668205,2689.7,2688.9,0.0049908]
[1643827645724,0.19668205,2689.7,2688.9,1.0049908]
[1643827645926,0.19668205,2689.7,2688.9,0.0049908]
[1643827646128,0.19668205,2689.7,2688.9,1.9346774]
[1643827646326,0.19668205,2689.7,2689.1,0.00499073]
[1643827646725,0.19668205,2689.7,2689.2,0.95452659]
[1643827647125,0.19668205,2689.7,2689.3,0.92965]
[1643827648225,0.00498865,2689.8,2689.3,1.8593]
[1643827648425,0.46229994,2689.9,2689.3,1.8593]
[1643827648726,1.58167924,2689.8,2689.3,1.8593]
[1643827648967,1.57652273,2689.7,2689.3,3.84928459]
[1643827649163,0.00515651,2689.8,2689.4,0.1859]
[1643827649363,0.00515651,2689.8,2689.3,1.8593]
[1643827649364,0.00515651,2689.8,2689.3,2.0452]
[1643827649967,0.00515661,2689.8,2689.3,2.0452]
[1643827650468,1.57648751,2689.7,2689.3,2.0452]
[1643827651064,0.00528622,2689.8,2689.3,2.0452]
[1643827651265,1.57651572,2689.7,2689.3,2.0452]
[1643827651466,1.57651572,2689.7,2689.1,0.00528758]
[1643827652067,1.57651572,2689.7,2688.8,1.1886]
[1643827652267,1.57651572,2689.6,2689.1,0.00513269]
[1643827652467,0.00513137,2689.8,2689.1,0.93738608]
[1643827652468,1.57651572,2689.7,2689.1,0.93738608]
[1643827652714,1.57651572,2689.6,2689.1,0.93738608]
[1643827652910,1.57651572,2689.5,2689.1,0.00513269]
[1643827653216,1.57651572,2689.4,2689.1,0.00513269]
[1643827653410,1.76241572,2689.7,2689.1,0.00513269]
[1643827653610,1.5766939,2689.6,2689.1,0.00513263]
[1643827654917,1.5766939,2689.6,2689.1,0.00499385]
[1643827655615,1.5766939,2689.5,2689.3,0.16406775]
[1643827655817,0.1859,2689.8,2689.3,0.16406775]
[1643827655818,0.00497409,2689.8,2689.3,0.16406775]
[1643827656013,0.00497409,2689.8,2689.3,0.70106775]
[1643827656213,0.00497409,2689.8,2689.4,0.92944]
[1643827656665,0.00497409,2689.8,2689.5,0.93904161]
[1643827656875,0.1859,2690.4,2689.6,0.537]
[1643827657065,1.59585228,2691.2,2689.6,0.837]
[1643827657066,0.00497433,2689.8,2689.6,0.837]
[1643827657465,0.00497433,2689.8,2689.6,1.837]
[1643827657867,0.00497433,2689.8,2689.7,7.3042056]
[1643827658065,0.00497433,2689.8,2689.7,7.8412056]
[1643827658267,0.00543582,2689.8,2689.7,10.6996956]
[1643827658667,0.00543582,2689.8,2689.7,8.54549]
[1643827659274,0.86015371,2690.9,2690.0,0.92931]
[1643827659469,0.02176104,2690.3,2690.0,0.92931]
[1643827659668,1.57618728,2690.2,2690.0,0.92931]
[1643827660315,1.57618728,2690.2,2690.1,0.75411326]
[1643827660506,0.02176104,2690.3,2690.1,0.75411326]
[1643827660507,0.02176104,2690.3,2690.1,3.77592011]
[1643827660709,0.94024317,2691.3,2690.1,3.77592011]
[1643827660710,0.1857,2690.9,2690.2,2.56980318]
[1643827660909,1.57608396,2690.8,2690.2,3.68479318]
[1643827661115,0.1857,2691.0,2690.3,1.0]
[1643827661116,1.57608396,2690.7,2690.3,1.0]
[1643827661313,0.1857,2691.0,2690.3,0.537]
[1643827661314,1.57608396,2690.9,2690.3,0.537]
[1643827661513,1.57608396,2690.8,2690.1,0.75411326]
[1643827661711,0.88841369,2691.0,2690.1,0.75411326]
[1643827661712,1.57608396,2690.7,2690.1,0.75411326]
[1643827661912,1.57608396,2690.6,2689.9,5.7061]
[1643827662114,1.76178396,2690.5,2689.7,0.1857]
[1643827662312,1.57608396,2690.4,2689.7,0.1857]
[1643827662516,1.57608396,2690.4,2689.7,0.3292505]
[1643827662914,1.57608396,2690.4,2690.0,0.92342793]
[1643827663114,0.00526971,2690.3,2690.0,0.92342793]
[1643827663316,1.5762573,2690.2,2690.0,0.92342793]
[1643827663719,0.00526971,2690.3,2690.0,0.92342793]
[1643827664362,0.00526977,2690.3,2690.0,0.92869842]
[1643827664565,0.00526977,2690.3,2690.0,0.00527049]
[1643827665366,0.1857,2690.2,2690.0,0.00527049]
[1643827665564,3.89745787,2690.1,2690.0,0.00528202]
[1643827665766,6.17732453,2690.1,2690.0,0.00528202]
[1643827665964,6.130888,2690.1,2690.0,0.00528202]
[1643827666163,4.03315787,2690.1,2690.0,0.00528202]
[1643827666373,6.11016077,2690.1,2690.0,0.00528202]
[1643827666664,1.08315787,2690.1,2690.0,0.00528202]
[1643827666866,1.08315787,2690.1,2689.3,1.9391847]
[1643827666867,0.1857,2690.1,2689.9,0.00528212]
[1643827667067,0.1857,2690.2,2689.9,0.00528212]
[1643827668109,0.1857,2690.2,2689.9,0.00494797]
[1643827668707,0.1406472,2690.3,2689.9,0.00494797]
[1643827668910,2.40987796,2690.3,2689.9,0.00494797]
[1643827669109,0.14546208,2690.3,2689.9,0.00481563]
[1643827669408,0.00481488,2690.3,2689.9,0.00481563]
[1643827670112,0.17148681,2690.4,2689.8,0.93201875]
[1643827670309,0.1857,2690.3,2689.8,0.93201875]
[1643827671209,0.1857,2690.3,2689.4,0.04505]
[1643827671464,2.40923455,2690.3,2689.4,0.04505]
[1643827671659,2.40923455,2690.3,2689.9,0.00250417]
[1643827671856,2.22353455,2690.3,2689.4,0.04505]
[1643827672264,2.22353455,2690.3,2689.5,0.83187153]
[1643827672458,0.1857,2690.2,2689.5,0.83187153]
[1643827672660,2.40923455,2690.3,2689.5,0.83187153]
[1643827673362,2.40923455,2690.3,2689.4,0.04505]
[1643827673562,2.40923455,2690.3,2689.3,1.1757]
[1643827673563,2.40923455,2690.3,2689.3,1.3614]
[1643827673758,2.40923455,2690.3,2689.3,0.1857]
[1643827673759,2.89483455,2690.3,2689.3,0.1857]
[1643827673962,3.59663001,2690.3,2689.3,0.1857]
[1643827674159,3.59663001,2690.3,2689.2,0.1857]
[1643827674160,0.15187193,2689.9,2689.2,0.1857]
[1643827674362,2.89483455,2690.3,2689.2,0.1857]
[1643827674561,2.89483455,2690.3,2689.4,0.87974061]
[1643827675415,0.17067424,2690.1,2689.4,0.87974061]
[1643827675614,0.35627424,2690.1,2689.4,0.87974061]
[1643827676017,0.65627424,2690.1,2689.4,0.87974061]
[1643827676416,0.65627424,2690.1,2689.6,0.00561561]
[1643827677216,1.3580697,2690.1,2689.6,0.00561561]
[1643827677416,0.89095054,2690.0,2689.4,0.87974061]
[1643827677717,0.89095054,2690.0,2689.7,0.00561551]
[1643827678215,0.65627424,2690.1,2689.7,0.00561551]
[1643827678818,0.1857,2690.2,2689.7,0.00561551]
[1643827679064,0.19121427,2690.3,2689.7,0.00561551]
[1643827679662,0.19121427,2690.3,2689.7,0.78200274]
[1643827679864,0.00561427,2690.3,2689.7,0.78200274]
[1643827680063,0.17682384,2690.2,2689.8,0.00561558]
[1643827680263,0.00561444,2690.3,2689.8,0.00561558]
[1643827681364,0.00497591,2690.3,2689.8,0.00497692]
[1643827681564,0.1951376,2690.3,2689.8,0.00497692]
[1643827681768,0.70179546,2690.2,2689.8,0.00497692]
[1643827682716,0.94024317,2690.0,2689.8,0.00497692]
[1643827682916,6.6856,2689.9,2689.8,0.00497692]
[1643827683121,7.7083,2689.9,2689.8,0.00497692]
[1643827683315,0.91121387,2689.8,2689.4,0.1857]
[1643827683518,0.94026083,2689.6,2689.4,0.1857]
[1643827683717,5.3359,2689.5,2689.4,0.1857]
[1643827683915,6.91280541,2689.5,2689.4,0.1857]
[1643827684728,7.09840541,2689.5,2689.4,0.1857]
[1643827685318,1.94840541,2689.5,2689.4,0.1857]
[1643827685519,0.1856,2689.5,2689.3,0.00515874]
[1643827685721,1.57690541,2689.4,2689.3,0.00515874]
[1643827686125,1.57690541,2689.4,2689.3,0.01031748]
[1643827686320,1.57690541,2689.4,2689.3,0.00515874]
[1643827686573,2.28217323,2689.7,2689.3,0.00515874]
[1643827686768,1.57690541,2689.6,2689.3,0.00515874]
[1643827686977,0.83235347,2689.4,2689.3,0.00515874]
[1643827687171,5.5501267,2689.4,2689.3,0.00515874]
[1643827687371,5.5501267,2689.4,2688.5,8.8166]
[1643827687372,1.57690541,2689.4,2688.6,0.1859]
[1643827687670,1.57690541,2689.3,2688.6,0.1859]
[1643827687871,1.57690541,2689.2,2688.6,0.1859]
[1643827688069,0.70526782,2689.4,2688.6,0.1859]
[1643827688070,0.89086782,2689.4,2688.6,0.1859]
[1643827688270,0.14792335,2688.9,2688.6,0.1859]
[1643827688473,1.57690541,2688.8,2688.6,0.1859]
[1643827689270,1.57690541,2688.8,2688.2,0.1859]
[1643827689473,0.79162638,2689.2,2688.2,0.1859]
[1643827689474,1.57690541,2688.7,2688.2,0.1859]
[1643827689671,0.79162638,2689.2,2688.6,0.00506958]
[1643827689973,1.57685654,2689.1,2688.6,0.00506958]
[1643827690422,0.17070151,2688.8,2688.6,0.00506958]
[1643827690620,3.67685654,2688.7,2688.6,0.00506958]
[1643827690820,4.16245654,2688.7,2688.6,0.00506958]
[1643827691117,4.16245654,2688.7,2687.9,3.1761]
[1643827691118,1.57685654,2688.7,2687.9,0.1859]
[1643827691321,1.76275654,2688.7,2687.8,7.5859]
[1643827691521,0.15604652,2688.1,2687.8,7.5859]
[1643827691920,0.89031346,2688.5,2687.8,7.5859]
[1643827692224,1.57728393,2688.4,2688.1,0.00515959]
[1643827692418,1.76288393,2688.4,2688.1,0.00515959]
[1643827692620,1.76288393,2688.4,2687.8,7.4]
[1643827692621,1.57728393,2688.3,2687.8,7.4]
[1643827693520,1.57728393,2688.3,2687.7,0.186]
[1643827694464,0.1856,2688.4,2687.7,0.186]
[1643827694465,1.57728393,2688.2,2687.7,0.186]
[1643827694666,1.57728393,2688.1,2687.4,0.186]
[1643827694869,0.4856,2688.4,2687.1,11.23379204]
[1643827694870,0.186,2688.3,2687.3,0.186]
[1643827695066,1.57744558,2688.2,2687.2,0.186]
[1643827695266,0.93836427,2687.9,2687.2,0.186]
[1643827696066,0.17786585,2687.6,2687.2,0.186]
[1643827696265,0.17786585,2687.6,2687.1,0.186]
[1643827696672,0.17786585,2687.6,2686.5,9.49396302]
[1643827696673,0.17786585,2687.6,2686.6,0.186]
[1643827696869,2.36847062,2687.6,2686.6,0.186]
[1643827697067,3.29921062,2687.6,2687.2,0.00561205]
[1643827697268,0.186,2687.5,2687.2,0.00561205]
[1643827697469,0.92771119,2687.3,2687.2,0.00561205]
[1643827697913,0.92771119,2687.3,2686.6,0.85942057]
[1643827698220,0.19018566,2687.5,2687.1,0.00561214]
[1643827698413,0.55337222,2687.6,2687.1,0.00561214]
[1643827698813,2.3720335,2687.5,2687.1,0.00561214]
[1643827699414,2.3720335,2687.5,2687.2,0.00561205]
[1643827699614,0.80141726,2687.3,2687.2,0.00561205]
[1643827699818,2.3720335,2687.5,2687.2,0.00561205]
[1643827699819,0.186,2687.4,2687.2,0.00561205]
[1643827700714,0.186,2687.4,2687.2,0.00512423]
[1643827701120,0.18950637,2687.6,2687.2,0.00512423]
[1643827701121,0.186,2687.6,2687.2,0.00512423]
[1643827701317,1.1731,2687.9,2687.2,0.00512423]
[1643827701318,1.3591,2687.9,2687.2,0.00512423]
[1643827701767,0.186,2687.9,2687.2,0.00512423]
[1643827701969,0.67313737,2687.8,2687.2,0.00493482]
[1643827702970,0.1856,2687.7,2687.2,0.00493482]
[1643827703168,0.1856,2687.7,2687.4,0.00493465]
[1643827703470,0.15553771,2687.6,2687.4,0.00493465]
[1643827704267,4.1356,2687.5,2687.4,0.00497359]
[1643827704467,6.29674982,2687.5,2687.4,0.00497359]
[1643827704971,4.1356,2687.5,2687.4,0.00497359]
[1643827705423,4.1356,2687.5,2687.3,0.00499648]
[1643827705618,0.1856,2687.5,2687.3,0.00499648]
[1643827706122,0.186,2687.7,2687.3,0.00499648]
[1643827706318,0.1856,2687.8,2687.3,0.00499648]
[1643827706921,0.1856,2687.8,2687.3,0.00499653]
[1643827707523,0.15839194,2687.6,2687.3,0.00499653]
[1643827707925,0.15839194,2687.6,2687.4,0.00501165]
[1643827708723,0.89077282,2687.8,2687.4,0.00501165]
[1643827708963,0.1856,2687.8,2687.4,0.00501165]
[1643827709161,0.1856,2687.8,2687.4,0.00476094]
[1643827709963,0.18688716,2687.6,2687.4,0.00476094]
[1643827710364,0.18688716,2687.6,2687.0,1.00909319]
[1643827710365,0.18688716,2687.6,2687.5,0.00476086]
[1643827711566,0.18688716,2687.6,2687.4,0.00475461]
[1643827711967,2.3856,2687.5,2687.4,0.00475461]
[1643827712369,4.65692486,2687.5,2687.4,0.00475461]
[1643827712567,0.69671712,2687.3,2687.0,0.01902128]
[1643827712820,0.19382973,2687.1,2686.9,0.01913552]
[1643827713020,0.1856,2687.5,2686.9,0.01913552]
[1643827714020,0.72367358,2687.4,2686.6,3.5121]
[1643827714424,1.96621888,2687.3,2686.6,3.5121]
[1643827714821,0.72367358,2687.4,2686.6,3.5121]
[1643827715023,0.17926079,2686.8,2686.6,3.5121]
[1643827715423,0.1856,2687.5,2686.6,0.186]
[1643827715827,0.3716,2687.7,2686.6,0.186]
[1643827716024,0.3716,2687.7,2686.8,0.0122206]
[1643827716225,1.57781865,2687.6,2686.8,0.0122206]
[1643827716473,0.17025968,2687.2,2686.9,0.00561233]
[1643827717270,0.68057143,2687.1,2686.9,0.00561233]
[1643827717668,0.68057143,2687.1,2686.9,0.0024923]
[1643827718670,0.68057143,2687.1,2686.9,0.00249235]
[1643827719874,0.68057143,2687.1,2686.9,0.0049847]
[1643827720073,0.68057143,2687.1,2686.9,0.00249235]
[1643827720523,0.17025968,2687.2,2686.9,0.00249235]
[1643827721225,0.17025968,2687.2,2686.9,0.00553243]
[1643827721724,1.08959152,2687.2,2686.9,0.00553243]
[1643827722326,2.9356,2687.0,2686.9,0.00553243]
[1643827722527,5.25817336,2687.0,2686.9,0.00553239]
[1643827723530,5.25817336,2687.0,2686.8,0.00553248]
[1643827723727,2.14668094,2686.9,2686.8,0.00553248]
[1643827723965,0.1856,2686.9,2686.8,0.00553248]
[1643827724765,0.1856,2686.9,2686.7,0.00527969]
[1643827726072,0.1856,2686.9,2686.7,0.00479982]
[1643827728319,0.1856,2686.9,2686.7,0.00977465]
[1643827728519,0.1856,2686.9,2686.7,0.00497483]
[1643827728920,4.8856,2686.8,2686.7,0.00497483]
[1643827729120,8.85759586,2686.8,2686.7,0.00497483]
[1643827729320,5.5,2686.7,2685.5,3.2339]
[1643827729522,0.93122,2686.5,2685.5,3.2339]
[1643827729820,0.93122,2686.5,2685.4,8.5513]
[1643827729821,4.65639262,2686.4,2686.3,0.02011866]
[1643827730022,5.68143309,2686.4,2686.3,0.02011866]
[1643827730219,6.68143309,2686.4,2686.3,0.02011866]
[1643827730420,7.56207136,2686.4,2686.3,0.02011866]
[1643827730820,7.56207136,2686.4,2685.4,7.4]
[1643827731019,2.57819809,2686.3,2685.4,7.4]
[1643827731219,4.56650877,2686.2,2685.4,7.4]
[1643827731485,1.0,2686.0,2685.4,7.4]
[1643827731672,1.0,2686.0,2684.6,0.186]
[1643827731673,4.25119809,2685.9,2684.6,0.186]
[1643827731873,4.25119809,2685.9,2685.7,0.00205297]
[1643827731874,1.57819809,2685.8,2685.7,0.00205297]
[1643827732072,3.61148712,2685.8,2685.7,0.00205297]
[1643827732484,3.79708712,2685.8,2685.7,0.00205297]
[1643827732673,4.2,2685.7,2684.6,0.88481391]
[1643827732873,1.72689768,2685.6,2684.6,0.88481391]
[1643827733072,1.18989768,2685.6,2684.6,0.88481391]
[1643827733273,0.18989768,2685.6,2685.2,0.02080328]
[1643827733774,0.18691668,2685.6,2685.2,0.02080328]
[1643827734174,0.87790662,2685.5,2685.2,0.02080328]
[1643827734374,0.1856,2685.3,2684.6,0.186]
[1643827735416,0.1967426,2685.0,2684.6,0.99918237]
[1643827735615,0.1967426,2685.0,2684.8,0.00229248]
[1643827735814,0.1856,2685.3,2684.8,0.00229248]
[1643827736617,0.179619,2685.3,2684.8,0.00229248]
[1643827736814,0.17372825,2685.1,2684.9,0.00544698]
[1643827738214,0.17372825,2685.1,2684.9,0.00544702]
[1643827738616,0.74582016,2685.0,2684.9,0.00544702]
[1643827738815,0.74282916,2685.0,2684.9,0.00544702]
[1643827739075,3.04931383,2685.0,2684.6,0.186]
[1643827739283,3.05803413,2685.0,2684.9,0.00518334]
[1643827739476,1.61881816,2685.0,2684.9,0.00518334]
[1643827739676,2.61881816,2685.0,2684.9,0.00518334]
[1643827739877,1.61881816,2685.0,2684.9,0.00518334]
[1643827740075,3.15581816,2685.0,2684.9,0.00518334]
[1643827740476,3.15581816,2685.0,2684.6,0.186]
[1643827740675,2.15581816,2685.0,2684.8,0.00518337]
[1643827740876,2.75,2684.8,2683.7,3.6756]
[1643827741079,5.32062568,2684.7,2683.3,0.01229095]
[1643827741278,5.32062568,2684.7,2683.7,0.1862]
[1643827741279,0.1862,2684.6,2683.7,0.1862]
[1643827741678,0.537,2684.5,2683.7,0.1862]
[1643827741879,0.85067298,2683.8,2683.6,0.1862]
[1643827742178,2.03032104,2683.7,2683.6,0.1862]
[1643827742378,0.85067298,2683.8,2683.0,0.1862]
[1643827742816,0.179619,2683.6,2683.0,0.1862]
[1643827743018,4.039789,2683.6,2683.1,0.00915452]
[1643827743221,4.576789,2683.6,2683.1,0.00915452]
[1643827743418,0.00729528,2683.5,2683.1,0.00915452]
[1643827744015,0.00729528,2683.5,2683.0,0.1862]
[1643827744016,0.69936533,2683.2,2683.0,0.1862]
[1643827744421,0.319285,2683.4,2683.0,0.1862]
[1643827744615,0.17157247,2682.9,2682.4,0.1862]
[1643827744820,0.17157247,2682.9,2682.3,0.1862]
[1643827745217,0.18401335,2683.2,2682.3,0.1862]
[1643827745218,0.00439435,2683.2,2682.3,0.1862]
[1643827745430,0.365819,2683.4,2682.3,0.1862]
[1643827745431,0.00679966,2683.4,2682.3,0.1862]
[1643827745618,0.1862,2683.6,2682.3,0.1862]
[1643827745619,0.0066335,2683.6,2682.3,0.1862]
[1643827745816,0.89695315,2683.5,2682.6,0.89392921]
[1643827746018,0.179619,2683.5,2682.7,0.1862]
[1643827746219,0.16683584,2683.3,2682.7,0.1862]
[1643827746676,0.16683584,2683.3,2682.9,0.00562458]
[1643827747877,0.16683584,2683.3,2683.0,0.00562454]
[1643827748577,0.06155434,2683.2,2683.0,0.00562454]
[1643827748777,0.06155434,2683.2,2682.6,0.1862]
[1643827748975,0.06155434,2683.2,2683.0,0.00562449]
[1643827749977,0.06155434,2683.2,2682.6,0.20870135]
[1643827750219,0.06155434,2683.2,2683.0,0.00552054]
[1643827751019,0.06155434,2683.2,2682.6,0.1862]
[1643827751219,0.05856334,2683.2,2682.6,0.1862]
[1643827751422,0.05856334,2683.2,2683.0,0.00533493]
[1643827751821,0.23818234,2683.2,2683.0,0.00533493]
[1643827752221,0.23818234,2683.2,2682.4,0.1862]
[1643827752424,0.23818234,2683.2,2682.0,3.12923274]
[1643827752425,0.05856334,2683.2,2682.3,0.1862]
[1643827752622,0.05856334,2683.2,2683.0,0.00533493]
[1643827753524,0.1862,2683.8,2683.0,0.00533493]
[1643827753525,0.179619,2683.6,2683.0,0.00533493]
[1643827753724,0.179619,2683.6,2683.0,0.01077386]
[1643827753973,0.365819,2683.8,2683.0,0.00543893]
[1643827754175,0.179619,2683.8,2683.0,0.00543893]
[1643827754379,0.1473484,2683.4,2683.0,0.00543893]
[1643827754978,0.1473484,2683.4,2683.3,2.15521897]
[1643827755378,0.94249921,2683.9,2683.3,2.15521897]
[1643827755577,0.1862,2683.8,2683.3,2.15521897]
[1643827755777,0.1862,2684.0,2683.3,0.00521897]
[1643827755979,0.1862,2684.0,2682.8,9.5619606]
[1643827756179,0.1862,2684.0,2683.4,0.00521901]
[1643827756580,0.73342859,2683.8,2683.4,0.00521901]
[1643827756781,0.91962859,2683.8,2683.4,0.00521901]
[1643827757180,0.91962859,2683.8,2682.8,9.7481606]
[1643827757381,0.91962859,2683.8,2683.4,0.0051225]
[1643827758624,0.18645371,2683.5,2683.4,0.00552778]
[1643827759224,0.0605034,2683.7,2683.4,0.00552778]
[1643827759525,0.0605034,2683.7,2682.9,2.05706633]
[1643827759928,0.0605034,2683.7,2683.3,0.68051855]
[1643827760128,0.0605034,2683.7,2683.3,0.18051855]
[1643827760525,0.15814562,2683.6,2683.3,0.18051855]
[1643827760726,0.0605034,2683.7,2683.3,0.18051855]
[1643827761770,0.2428277,2683.7,2683.3,0.18051855]
[1643827762569,0.2428277,2683.7,2683.2,0.0022559]
[1643827763369,0.0605034,2683.7,2683.2,0.00225611]
[1643827763575,0.1862,2684.1,2683.3,0.01261615]
[1643827763772,0.1862,2684.7,2683.4,0.537]
[1643827763971,0.1862,2684.7,2683.5,3.58363039]
[1643827764171,0.1862,2684.7,2683.5,1.6907]
[1643827764370,0.14550876,2684.0,2683.9,3.70329892]
[1643827764572,0.179619,2684.7,2683.9,3.70329892]
[1643827764771,6.42707,2685.2,2683.9,3.70329892]
[1643827764772,0.00544512,2684.2,2683.9,3.70329892]
[1643827765828,0.00514702,2684.2,2683.9,3.70329892]
[1643827767629,0.00514702,2684.2,2683.9,3.71544761]
[1643827768630,0.06085894,2684.1,2683.9,3.71544761]
[1643827769276,0.06085894,2684.1,2683.9,3.70329892]
[1643827769472,0.06583229,2684.1,2683.9,0.75329892]
[1643827769671,0.06583229,2684.1,2683.8,1.1537]
[1643827770074,0.06583229,2684.1,2683.8,0.9037]
[1643827770679,0.06585474,2684.1,2683.8,0.9037]
[1643827771076,0.06585474,2684.1,2683.9,0.91980646]